bitfinex-derivatives/quotes_BTCF0:USTF0_20251110
["timestamp","ask_amount","ask_price","bid_price","bid_amount"]
[1762776679874,0.1542036,106090.0,106080.0,0.16120053]
[1762776680074,0.24673375,106090.0,106080.0,0.16120053]
[1762776680373,0.24673375,106090.0,106080.0,0.05661803]
[1762776681469,0.24673375,106090.0,106080.0,0.15091053]
[1762776681670,0.1542036,106090.0,106080.0,0.15091053]
[1762776681865,0.24673375,106090.0,106080.0,0.15091053]
[1762776682564,0.24673375,106090.0,106080.0,0.01319803]
[1762776683163,0.9392639,106090.0,106080.0,0.011]
[1762776683471,0.1542725,106080.0,106070.0,0.09444249]
[1762776683768,0.3393328,106080.0,106070.0,0.09664052]
[1762776684166,0.3393328,106080.0,106070.0,0.14095052]
[1762776684167,0.24680265,106080.0,106070.0,0.14095052]
[1762776684357,0.05998,106080.0,106070.0,0.15470052]
[1762776684564,0.24680265,106080.0,106070.0,0.16170052]
[1762776684968,0.15251015,106080.0,106070.0,0.16170052]
[1762776685165,0.04628,106080.0,106070.0,0.16770052]
[1762776687561,0.13881015,106080.0,106070.0,0.16770052]
[1762776689276,0.04628,106080.0,106070.0,0.16770052]
[1762776689473,0.13881015,106080.0,106070.0,0.16770052]
[1762776690066,0.04978,106090.0,106080.0,0.05806]
[1762776690269,0.04978,106090.0,106080.0,0.15455053]
[1762776690572,0.1440637,106090.0,106080.0,0.15455053]
[1762776690777,0.04978,106090.0,106080.0,0.15455053]
[1762776690967,0.14219806,106090.0,106080.0,0.24696859]
[1762776691172,0.14219806,106090.0,106080.0,0.25096859]
[1762776691371,0.14219806,106090.0,106080.0,0.25496859]
[1762776691677,0.04978,106090.0,106080.0,0.25496859]
[1762776692776,0.14219806,106090.0,106080.0,0.25496859]
[1762776693564,0.0035,106090.0,106080.0,0.33106971]
[1762776693771,0.0035,106090.0,106080.0,0.42348777]
[1762776694482,0.14219806,106090.0,106080.0,0.33106971]
[1762776695577,0.14219806,106090.0,106080.0,0.23865165]
[1762776696777,0.14219806,106090.0,106080.0,0.33106971]
[1762776698279,0.04978,106090.0,106080.0,0.33106971]
[1762776698481,0.14219806,106090.0,106080.0,0.33106971]
[1762776699181,0.23648176,106090.0,106080.0,0.23677721]
[1762776699382,0.25018176,106090.0,106080.0,0.14880063]
[1762776699580,0.15589806,106090.0,106080.0,0.16255063]
[1762776700779,0.14219806,106090.0,106080.0,0.16255063]
[1762776701174,0.14219806,106090.0,106080.0,0.25496869]
[1762776702087,0.14219806,106090.0,106080.0,0.16255063]
[1762776702281,0.14219806,106090.0,106080.0,0.25496869]
[1762776702875,0.11889806,106090.0,106080.0,0.25496869]
[1762776703880,0.14219806,106090.0,106080.0,0.25496869]
[1762776704280,0.04978,106090.0,106080.0,0.25496869]
[1762776704586,0.14219806,106090.0,106080.0,0.25496869]
[1762776705582,0.04978,106090.0,106080.0,0.25496869]
[1762776705781,0.14219806,106090.0,106080.0,0.25496869]
[1762776706184,0.04978,106090.0,106080.0,0.16255063]
[1762776706380,0.14219806,106090.0,106080.0,0.16255063]
[1762776706781,0.15589806,106090.0,106080.0,0.16255063]
[1762776706982,0.15589806,106090.0,106080.0,0.2378372]
[1762776706983,0.25018166,106090.0,106080.0,0.2378372]
[1762776707186,0.25018166,106090.0,106080.0,0.16255063]
[1762776708088,0.1577636,106090.0,106080.0,0.16255063]
[1762776708278,0.25018166,106090.0,106080.0,0.16255063]
[1762776708588,0.25018166,106090.0,106080.0,0.14880063]
[1762776708778,0.25018166,106090.0,106080.0,0.05450803]
[1762776709187,0.25018166,106090.0,106080.0,0.14880043]
[1762776710287,0.34259972,106090.0,106080.0,0.14880043]
[1762776710487,0.25018166,106090.0,106080.0,0.14880043]
[1762776711589,0.25018166,106090.0,106080.0,0.12683043]
[1762776711984,0.25018166,106090.0,106080.0,0.14810043]
[1762776712287,0.06348,106090.0,106080.0,0.14810043]
[1762776712585,0.25018166,106090.0,106080.0,0.14810043]
[1762776713690,0.34259972,106090.0,106080.0,0.14810043]
[1762776713991,0.25018166,106090.0,106080.0,0.14810043]
[1762776714893,0.34259972,106090.0,106080.0,0.12683043]
[1762776715391,0.25018166,106090.0,106080.0,0.12683043]
[1762776715599,0.25018166,106090.0,106080.0,0.14813043]
[1762776716994,0.25018166,106090.0,106080.0,0.12683043]
[1762776718092,0.66851972,106090.0,106080.0,0.01019803]
[1762776719492,0.1422324,106080.0,106070.0,0.00014109]
[1762776719695,0.23465046,106080.0,106070.0,0.00014109]
[1762776720791,0.32706852,106080.0,106070.0,0.09444239]
[1762776720990,0.32706852,106080.0,106070.0,0.09944239]
[1762776721191,0.41948658,106080.0,106070.0,0.00514109]
[1762776721898,0.41948658,106080.0,106070.0,0.00914109]
[1762776723696,0.1493092,106050.0,106040.0,0.25730331]
[1762776723902,0.33414532,106050.0,106040.0,0.14087613]
[1762776724199,0.24172726,106050.0,106040.0,0.14087613]
[1762776725094,0.33414532,106050.0,106040.0,0.04654803]
[1762776725286,0.33414532,106050.0,106040.0,0.09652613]
[1762776725492,0.33414532,106050.0,106040.0,0.11957613]
[1762776725692,0.33414532,106050.0,106040.0,0.14887613]
[1762776726088,0.33414532,106050.0,106040.0,0.05454803]
[1762776726295,0.33414532,106050.0,106040.0,0.05754803]
[1762776726695,0.33414532,106050.0,106040.0,0.01319803]
[1762776727305,0.33414532,106050.0,106040.0,0.00519803]
[1762776727507,0.24172726,106050.0,106040.0,0.12457603]
[1762776727799,0.33414532,106050.0,106040.0,0.03024803]
[1762776728001,0.33414532,106050.0,106040.0,0.12457603]
[1762776728304,0.33414532,106050.0,106040.0,0.14587603]
[1762776730602,0.05499,106050.0,106040.0,0.15961603]
[1762776730795,0.46043806,106050.0,106040.0,0.25203409]
[1762776730994,0.13451806,106050.0,106040.0,0.25203409]
[1762776732297,0.22883716,106050.0,106040.0,0.15961603]
[1762776732500,0.24172716,106050.0,106040.0,0.05154803]
[1762776732694,0.24172716,106050.0,106040.0,0.14587603]
[1762776732900,0.13451806,106050.0,106040.0,0.15961603]
[1762776733209,0.22883716,106050.0,106040.0,0.15961603]
[1762776733802,0.24172716,106050.0,106040.0,0.15961603]
[1762776735600,0.22883716,106050.0,106040.0,0.15961603]
[1762776735804,0.13451806,106050.0,106040.0,0.25203409]
[1762776737209,0.13451806,106050.0,106040.0,0.15961603]
[1762776737210,0.22883716,106050.0,106040.0,0.15961603]
[1762776737604,0.13451806,106050.0,106040.0,0.15961603]
[1762776737804,0.22883716,106050.0,106040.0,0.15961603]
[1762776739411,0.24270716,106050.0,106040.0,0.06528803]
[1762776739799,0.24270716,106050.0,106040.0,0.05154803]
[1762776739800,0.33512522,106050.0,106040.0,0.05154803]
[1762776740008,0.33512522,106050.0,106040.0,0.00719803]
[1762776740600,0.33512522,106050.0,106040.0,0.05239803]
[1762776740805,0.33512522,106050.0,106040.0,0.14672603]
[1762776741005,0.1502891,106050.0,106040.0,0.14672603]
[1762776741207,0.33512522,106050.0,106040.0,0.14672603]
[1762776741915,0.24270716,106050.0,106040.0,0.14672603]
[1762776742112,0.24270716,106050.0,106040.0,0.16038603]
[1762776743016,0.24270716,106050.0,106040.0,0.11518603]
[1762776743215,0.33512522,106050.0,106040.0,0.00719803]
[1762776744515,0.33512522,106050.0,106040.0,0.10152603]
[1762776744909,0.33512522,106050.0,106040.0,0.00719803]
[1762776745710,0.33512522,106050.0,106040.0,0.005]
[1762776745916,0.33512522,106050.0,106040.0,0.00719803]
[1762776746111,0.33512522,106050.0,106040.0,0.10152603]
[1762776746316,0.24270716,106050.0,106040.0,0.14672603]
[1762776746517,0.33512522,106050.0,106040.0,0.05239803]
[1762776746822,0.33512522,106050.0,106040.0,0.02963803]
[1762776747114,0.33512522,106050.0,106040.0,0.00519803]
[1762776747320,0.33512522,106050.0,106040.0,0.00719803]
[1762776747723,0.33512522,106050.0,106040.0,0.005]
[1762776748112,0.33512522,106050.0,106040.0,0.00719803]
[1762776748312,0.33512522,106050.0,106040.0,0.00519803]
[1762776748513,0.33512522,106050.0,106040.0,0.003]
[1762776748723,0.33512522,106050.0,106040.0,0.001]
[1762776748915,0.33512522,106050.0,106040.0,0.004]
[1762776749614,0.33512522,106050.0,106040.0,0.003]
[1762776751824,0.33512522,106050.0,106040.0,0.00519803]
[1762776752924,0.33536022,106050.0,106040.0,0.00519803]
[1762776753123,0.35363022,106050.0,106040.0,0.003]
[1762776753524,0.37928968,106050.0,106040.0,0.003]
[1762776753720,0.151718,106040.0,106030.0,0.00014109]
[1762776753920,0.57009356,106040.0,106030.0,0.00014109]
[1762776754918,0.57009356,106040.0,106030.0,0.00533912]
[1762776755623,0.57009356,106040.0,106030.0,0.00333912]
[1762776755817,0.57009356,106040.0,106030.0,0.00533912]
[1762776756421,0.57009356,106040.0,106030.0,0.09967602]
[1762776757425,0.57009356,106040.0,106030.0,0.00533912]
[1762776757728,0.57009356,106040.0,106030.0,0.09967602]
[1762776758324,0.57009356,106040.0,106030.0,0.00533912]
[1762776758529,0.57009356,106040.0,106030.0,0.00314109]
[1762776758823,0.1412869,106030.0,106020.0,0.01413201]
[1762776759018,0.32635802,106030.0,106020.0,0.05933201]
[1762776759218,0.32635802,106030.0,106020.0,0.15367781]
[1762776759417,0.23382246,106030.0,106020.0,0.15587584]
[1762776760014,0.23382246,106030.0,106020.0,0.03877004]
[1762776760526,0.23382246,106030.0,106020.0,0.01633004]
[1762776761127,0.23382246,106030.0,106020.0,0.01733004]
[1762776761627,0.23382246,106030.0,106020.0,0.01633004]
[1762776761830,0.23382246,106030.0,106020.0,0.11167584]
[1762776762223,0.23382246,106030.0,106020.0,0.01733004]
[1762776762824,0.23382246,106030.0,106020.0,0.11167584]
[1762776763028,0.23382246,106030.0,106020.0,0.03977004]
[1762776763434,0.23382246,106030.0,106020.0,0.13411584]
[1762776765021,0.23382246,106030.0,106020.0,0.15687584]
[1762776769627,0.23098246,106030.0,106020.0,0.16970584]
[1762776769834,0.55670246,106030.0,106020.0,0.16970584]
[1762776770140,0.04411,106030.0,106020.0,0.16970584]
[1762776770428,0.55670246,106030.0,106020.0,0.16970584]
[1762776770822,0.46236556,106030.0,106020.0,0.16970584]
[1762776771938,0.13664556,106030.0,106020.0,0.16970584]
[1762776772128,0.46236556,106030.0,106020.0,0.16970584]
[1762776775938,0.55670246,106030.0,106020.0,0.16970584]
[1762776776833,0.36983,106030.0,106020.0,0.16970584]
[1762776777038,0.46236556,106030.0,106020.0,0.16970584]
[1762776779535,0.55670246,106030.0,106020.0,0.16970584]
[1762776779736,0.55670246,106030.0,106020.0,0.07536004]
[1762776779931,0.56410246,106030.0,106020.0,0.16970584]
[1762776780533,0.46976556,106030.0,106020.0,0.16970584]
[1762776780731,0.56410246,106030.0,106020.0,0.16970584]
[1762776781541,0.56410246,106030.0,106020.0,0.15687584]
[1762776783646,0.56410246,106030.0,106020.0,0.15651584]
[1762776785047,0.46976556,106030.0,106020.0,0.17006584]
[1762776786146,0.48064556,106030.0,106020.0,0.17006584]
[1762776787348,0.58238246,106030.0,106020.0,0.17006584]
[1762776788847,0.58238246,106030.0,106020.0,0.15651584]
[1762776793341,0.58238246,106030.0,106020.0,0.06217004]
[1762776793541,0.67491802,106030.0,106020.0,0.11167584]
[1762776793741,0.67491802,106030.0,106020.0,0.01733004]
[1762776793949,0.67491802,106030.0,106020.0,0.11167584]
[1762776794748,0.67491802,106030.0,106020.0,0.01733004]
[1762776795447,0.67491802,106030.0,106020.0,0.11167584]
[1762776795653,0.58238246,106030.0,106020.0,0.11167584]
[1762776798352,0.67491802,106030.0,106020.0,0.11167584]
[1762776798654,0.58238246,106030.0,106020.0,0.15642584]
[1762776801659,0.58238246,106030.0,106020.0,0.13402584]
[1762776801849,0.67491802,106030.0,106020.0,0.01733004]
[1762776802452,0.67491802,106030.0,106020.0,0.01513201]
[1762776803654,0.67591802,106030.0,106020.0,0.01413201]
[1762776803857,0.67791802,106030.0,106020.0,0.01413201]
[1762776805153,0.67691802,106030.0,106020.0,0.01413201]
[1762776805360,0.67791802,106030.0,106020.0,0.01413201]
[1762776808359,0.67791802,106030.0,106020.0,0.11067594]
[1762776812352,0.67791802,106030.0,106020.0,0.01633004]
[1762776812558,0.67791802,106030.0,106020.0,0.03820004]
[1762776812767,0.67791802,106030.0,106020.0,0.01633004]
[1762776812955,0.67791802,106030.0,106020.0,0.11067594]
[1762776813266,0.58538246,106030.0,106020.0,0.15541594]
[1762776814162,0.67791802,106030.0,106020.0,0.01633004]
[1762776814967,0.67798304,106030.0,106020.0,0.01633004]
[1762776816863,0.67798304,106030.0,106020.0,0.11067594]
[1762776817054,0.67798304,106030.0,106020.0,0.15541594]
[1762776818067,0.67798304,106030.0,106020.0,0.06107004]
[1762776818367,0.67798304,106030.0,106020.0,0.03820004]
[1762776819367,0.67798304,106030.0,106020.0,0.01633004]
[1762776819974,0.67798304,106030.0,106020.0,0.01413201]
[1762776823272,0.77055111,106030.0,106020.0,0.01413201]
[1762776823571,0.67798304,106030.0,106020.0,0.01413201]
[1762776825167,0.67798304,106030.0,106020.0,0.01633004]
[1762776825373,0.67798304,106030.0,106020.0,0.03820004]
[1762776825766,0.67798304,106030.0,106020.0,0.01633004]
[1762776827981,0.67798304,106030.0,106020.0,0.03820004]
[1762776828474,0.67798304,106030.0,106020.0,0.01633004]
[1762776831268,0.1512056,106020.0,106010.0,1e-08]
[1762776831467,0.42890981,106020.0,106010.0,0.00219804]
[1762776832470,0.42990981,106020.0,106010.0,0.00219804]
[1762776832672,0.42990981,106020.0,106010.0,0.00319804]
[1762776833775,0.42990981,106020.0,106010.0,0.02518804]
[1762776834170,0.44819981,106020.0,106010.0,0.02518804]
[1762776834369,0.44819981,106020.0,106010.0,0.14084254]
[1762776834769,0.35563174,106020.0,106010.0,0.15072834]
[1762776835377,0.35563174,106020.0,106010.0,0.05637384]
[1762776835678,0.44819981,106020.0,106010.0,0.05637384]
[1762776836581,0.44819981,106020.0,106010.0,0.03507384]
[1762776838671,0.44819981,106020.0,106010.0,0.05716384]
[1762776839068,0.1704956,106020.0,106010.0,0.05716384]
[1762776839272,0.44819981,106020.0,106010.0,0.05716384]
[1762776839672,0.77387981,106020.0,106010.0,0.05716384]
[1762776841080,0.77387981,106020.0,106010.0,0.00319804]
[1762776841280,0.1385935,106000.0,105990.0,0.0586528]
[1762776841473,0.64940964,106000.0,105990.0,0.06085083]
[1762776841679,0.66281964,106000.0,105990.0,0.06085083]
[1762776842075,0.66281964,106000.0,105990.0,0.15522323]
[1762776842475,0.66281964,106000.0,105990.0,0.15922323]
[1762776842676,0.66381964,106000.0,105990.0,0.16222323]
[1762776843378,0.001,106000.0,105990.0,0.16222323]
[1762776843582,0.41924807,106000.0,105990.0,0.2547913]
[1762776843883,0.41924807,106000.0,105990.0,0.16222323]
[1762776844084,0.44052807,106000.0,105990.0,0.16222323]
[1762776844488,0.55784157,106000.0,105990.0,0.17216215]
[1762776844984,0.46347807,106000.0,105990.0,0.24627465]
[1762776845980,0.55784157,106000.0,105990.0,0.24627465]
[1762776846176,0.46347807,106000.0,105990.0,0.24627465]
[1762776846586,0.37091,106000.0,105990.0,0.24627465]
[1762776846790,0.41924807,106000.0,105990.0,0.33884272]
[1762776847684,0.44052807,106000.0,105990.0,0.33884272]
[1762776848087,0.11484807,106000.0,105990.0,0.33884272]
[1762776850098,0.001,106000.0,105990.0,0.33884272]
[1762776850490,0.09356807,106000.0,105990.0,0.33884272]
[1762776850790,0.09356807,106000.0,105990.0,0.24627465]
[1762776851094,0.09356807,106000.0,105990.0,0.33884272]
[1762776851492,0.001,106000.0,105990.0,0.33884272]
[1762776852396,0.09356807,106000.0,105990.0,0.33884272]
[1762776852579,0.09356807,106000.0,105990.0,0.45746793]
[1762776852989,0.20921187,106000.0,105990.0,0.45746793]
[1762776853289,0.09356807,106000.0,105990.0,0.45746793]
[1762776853483,0.09356807,106000.0,105990.0,0.33884272]
[1762776854091,0.18793187,106000.0,105990.0,0.33884272]
[1762776854293,0.23216187,106000.0,105990.0,0.24627465]
[1762776855296,0.32472994,106000.0,105990.0,0.24627465]
[1762776856092,0.23036614,106000.0,105990.0,0.24627465]
[1762776856492,0.32472994,106000.0,105990.0,0.24627465]
[1762776858996,0.02228,106000.0,105990.0,0.33884272]
[1762776859195,0.001,106000.0,105990.0,0.33884272]
[1762776859493,0.09270916,106010.0,106000.0,0.05921]
[1762776859694,0.13828916,106010.0,106000.0,0.15577193]
[1762776859898,0.04572109,106010.0,106000.0,0.15577193]
[1762776860098,0.13828916,106010.0,106000.0,0.15577193]
[1762776860800,0.13828916,106010.0,106000.0,0.15877193]
[1762776861389,0.23264406,106010.0,106000.0,0.15877193]
[1762776862694,0.13828916,106010.0,106000.0,0.15877193]
[1762776866102,0.04572109,106010.0,106000.0,0.15877193]
[1762776866303,0.13828916,106010.0,106000.0,0.15877193]
[1762776868997,0.23264376,106010.0,106000.0,0.15877193]
[1762776869204,0.13828916,106010.0,106000.0,0.15877193]
[1762776870310,0.23264376,106010.0,106000.0,0.15877193]
[1762776870805,0.13828916,106010.0,106000.0,0.15877193]
[1762776871600,0.23264366,106010.0,106000.0,0.15877193]
[1762776872013,0.00014109,106010.0,106000.0,0.25134]
[1762776872202,0.09270916,106010.0,106000.0,0.25134]
[1762776872501,0.11567916,106010.0,106000.0,0.25134]
[1762776872704,0.04572109,106010.0,106000.0,0.25134]
[1762776873005,0.13828916,106010.0,106000.0,0.25134]
[1762776873203,0.00014109,106010.0,106000.0,0.34390807]
[1762776873507,1e-08,106010.0,106000.0,0.39461193]
[1762776873707,1e-08,106010.0,106000.0,0.57974807]
[1762776874705,1e-08,106010.0,106000.0,0.34390807]
[1762776874907,1e-08,106010.0,106000.0,0.4871483]
[1762776875608,1e-08,106010.0,106000.0,0.2513083]
[1762776876107,1e-08,106010.0,106000.0,0.60577351]
[1762776876304,1e-08,106010.0,106000.0,1.32737351]
[1762776876701,1e-08,106010.0,106000.0,1.09153351]
[1762776876901,1e-08,106010.0,106000.0,1.32737351]
[1762776877102,0.01237551,106010.0,106000.0,1.09153351]
[1762776877501,0.01237551,106010.0,106000.0,1.2087483]
[1762776877702,0.01237551,106010.0,106000.0,1.3561483]
[1762776878006,0.01237551,106010.0,106000.0,1.47477351]
[1762776878201,0.01237551,106010.0,106000.0,1.23893351]
[1762776878510,0.01237551,106010.0,106000.0,1.47477351]
[1762776879809,0.00014109,106020.0,106010.0,0.1535646]
[1762776880009,0.00014109,106020.0,106010.0,0.609099]
[1762776882013,0.00014109,106020.0,106010.0,0.844899]
[1762776883104,0.00014109,106020.0,106010.0,0.609099]
[1762776883506,0.00014109,106020.0,106010.0,0.844899]
[1762776883706,0.00014109,106020.0,106010.0,0.609099]
[1762776883908,0.00014109,106020.0,106010.0,0.844899]
[1762776884306,0.00014109,106020.0,106010.0,0.51656263]
[1762776884307,0.02311109,106020.0,106010.0,0.51656263]
[1762776884817,0.00014109,106020.0,106010.0,0.51656263]
[1762776887320,0.02311109,106020.0,106010.0,0.51656263]
[1762776887511,0.00014109,106020.0,106010.0,0.51656263]
[1762776888814,0.00014109,106020.0,106010.0,0.67326263]
[1762776889019,0.00014109,106020.0,106010.0,0.51656263]
[1762776889825,0.00014109,106020.0,106010.0,0.609099]
[1762776890021,0.02311109,106020.0,106010.0,0.609099]
[1762776890215,0.00014109,106020.0,106010.0,0.609099]
[1762776890425,0.04414109,106020.0,106010.0,0.609099]
[1762776890923,0.04414109,106020.0,106010.0,0.51656263]
[1762776891618,0.13667746,106020.0,106010.0,0.51656263]
[1762776891929,0.23102316,106020.0,106010.0,0.51656263]
[1762776892325,0.13667746,106020.0,106010.0,0.51656263]
[1762776892830,0.23102316,106020.0,106010.0,0.51656263]
[1762776893824,0.02240109,106020.0,106010.0,0.51656263]
[1762776894212,0.00014109,106020.0,106010.0,0.51656263]
[1762776894524,0.00014109,106020.0,106010.0,0.609099]
[1762776896023,0.00014109,106020.0,106010.0,0.72772421]
[1762776898826,0.00014109,106020.0,106010.0,0.609099]
[1762776899816,0.00014109,106020.0,106010.0,0.992299]
[1762776900021,0.13574637,106040.0,106030.0,0.1521968]
[1762776900222,0.23007427,106040.0,106030.0,0.15439483]
[1762776900418,0.13574637,106040.0,106030.0,0.15439483]
[1762776900728,0.04321,106040.0,106030.0,0.51519483]
[1762776901324,0.003,106040.0,106030.0,0.59125637]
[1762776901530,0.006,106040.0,106030.0,0.83119274]
[1762776901921,0.006,106040.0,106030.0,1.03817795]
[1762776902134,0.00364109,106050.0,106040.0,0.1530579]
[1762776902332,0.00364109,106050.0,106040.0,0.6085923]
[1762776903834,0.00764109,106050.0,106040.0,0.6085923]
[1762776904137,0.01064109,106050.0,106040.0,0.6095923]
[1762776904333,0.14638746,106050.0,106040.0,0.51705593]
[1762776904536,0.16025746,106050.0,106040.0,0.51705593]
[1762776904836,0.25457646,106050.0,106040.0,0.51705593]
[1762776905035,0.24070646,106050.0,106040.0,0.51705593]
[1762776905824,0.25457646,106050.0,106040.0,0.50373593]
[1762776907237,0.34711283,106050.0,106040.0,0.50373593]
[1762776907536,0.25457646,106050.0,106040.0,0.50373593]
[1762776908623,0.34711283,106050.0,106040.0,0.02600803]
[1762776908831,0.70791283,106050.0,106040.0,0.02600803]
[1762776909032,0.70791283,106050.0,106040.0,0.00319803]
[1762776909231,1.30791283,106050.0,106040.0,0.00319803]
[1762776909531,1.30791283,106050.0,106040.0,0.001]
[1762776912738,1.33361123,106050.0,106040.0,0.0953279]
[1762776912938,0.85279383,106050.0,106040.0,0.45832593]
[1762776913236,1.63331283,106050.0,106040.0,0.02600803]
[1762776914037,1.63331283,106050.0,106040.0,0.00319803]
[1762776914232,1.63331283,106050.0,106040.0,0.09752593]
[1762776915032,1.63331283,106050.0,106040.0,0.00319803]
[1762776918840,1.63331283,106050.0,106040.0,0.001]
[1762776922741,1.03331283,106050.0,106040.0,0.14115593]
[1762776923137,1.03331283,106050.0,106040.0,0.00319803]
[1762776929353,1.03331283,106050.0,106040.0,0.02485803]
[1762776929849,1.03331283,106050.0,106040.0,0.04682803]
[1762776930150,1.03331283,106050.0,106040.0,0.14115593]
[1762776935055,1.03331283,106050.0,106040.0,0.11918593]
[1762776935850,1.03331283,106050.0,106040.0,0.14115593]
[1762776936255,1.03331283,106050.0,106040.0,0.00319803]
[1762776936855,1.03330451,106050.0,106040.0,0.00319803]
[1762776940964,1.03330451,106050.0,106040.0,0.02485803]
[1762776941146,1.03330451,106050.0,106040.0,0.00319803]
[1762776941347,1.03330451,106050.0,106040.0,0.09752593]
[1762776941659,1.03330451,106050.0,106040.0,0.14115593]
[1762776943756,0.5661023,106050.0,106040.0,0.15439593]
[1762776943956,0.37925109,106050.0,106040.0,0.60772814]
[1762776944259,0.01064109,106050.0,106040.0,0.70026035]
[1762776944460,0.01064109,106050.0,106040.0,0.60772814]
[1762776944645,0.01064109,106050.0,106040.0,0.70026035]
[1762776944850,0.01064109,106050.0,106040.0,0.93602035]
[1762776945158,0.01064109,106050.0,106040.0,0.70026035]
[1762776946251,0.01064109,106050.0,106040.0,0.60772814]
[1762776947458,0.1031733,106050.0,106040.0,0.60772814]
[1762776947950,0.1462833,106050.0,106040.0,0.60772814]
[1762776950354,0.01064109,106050.0,106040.0,0.93602035]
[1762776951560,0.1031733,106050.0,106040.0,0.84348814]
[1762776951757,0.1469533,106050.0,106040.0,0.60772814]
[1762776951963,0.2412723,106050.0,106040.0,0.60772814]
[1762776952463,0.2542823,106050.0,106040.0,0.51519593]
[1762776952761,0.2412723,106050.0,106040.0,0.51519593]
[1762776953354,0.1469533,106050.0,106040.0,0.51519593]
[1762776953553,0.1469533,106050.0,106040.0,0.60772814]
[1762776954858,0.2412723,106050.0,106040.0,0.60772814]
[1762776955764,0.2412723,106050.0,106040.0,0.51519593]
[1762776956068,0.2412723,106050.0,106040.0,0.60772814]
[1762776956259,0.14874009,106050.0,106040.0,0.51519593]
[1762776956460,0.2412723,106050.0,106040.0,0.60772814]
[1762776956661,0.2412723,106050.0,106040.0,0.51519593]
[1762776957974,0.34665451,106050.0,106040.0,0.14115593]
[1762776958670,0.67197451,106050.0,106040.0,0.04682803]
[1762776958870,1.03277451,106050.0,106040.0,0.00319803]
[1762776959974,1.03277451,106050.0,106040.0,0.02638803]
[1762776960387,1.03277451,106050.0,106040.0,0.001]
[1762776960588,1.03277451,106050.0,106040.0,0.1403078]
[1762776960792,1.03277451,106050.0,106040.0,0.12071583]
[1762776961185,1.03277451,106050.0,106040.0,0.02638803]
[1762776961385,1.03277451,106050.0,106040.0,0.00319803]
[1762776961590,1.03277451,106050.0,106040.0,0.14250583]
[1762776962184,0.67197451,106050.0,106040.0,0.14250583]
[1762776962592,1.03277451,106050.0,106040.0,0.14250583]
[1762776962783,0.67197451,106050.0,106040.0,0.14250583]
[1762776962984,1.03277451,106050.0,106040.0,0.02638803]
[1762776963490,1.03277451,106050.0,106040.0,0.04817803]
[1762776963792,1.03277451,106050.0,106040.0,0.14250583]
[1762776964295,0.67197451,106050.0,106040.0,0.14250583]
[1762776965092,0.5794823,106050.0,106040.0,0.14250583]
[1762776965291,1.03281451,106050.0,106040.0,0.14250583]
[1762776965491,0.67201451,106050.0,106040.0,0.14250583]
[1762776967393,1.03281451,106050.0,106040.0,0.04817803]
[1762776967688,1.03281451,106050.0,106040.0,0.00319803]
[1762776968082,1.03281451,106050.0,106040.0,0.02638803]
[1762776968285,1.03281451,106050.0,106040.0,0.04817803]
[1762776968887,1.03281451,106050.0,106040.0,0.02638803]
[1762776969088,1.03281451,106050.0,106040.0,0.00319803]
[1762776975590,1.03281451,106050.0,106040.0,0.001]
[1762776976899,1.12534672,106050.0,106040.0,0.001]
[1762776977107,0.1453866,106030.0,106020.0,0.13946659]
[1762776977297,1.01661102,106030.0,106020.0,0.04731912]
[1762776977898,1.01661102,106030.0,106020.0,0.00233912]
[1762776978098,1.01661102,106030.0,106020.0,0.00014109]
[1762776979105,1.01761102,106030.0,106020.0,0.00014109]
[1762776980110,1.47094323,106030.0,106020.0,0.00014109]
[1762776980309,0.1503644,106010.0,106000.0,0.4994978]
[1762776980506,0.66078882,106010.0,106000.0,0.50169583]
[1762776981410,0.66078882,106010.0,106000.0,0.50469583]
[1762776981807,0.66078882,106010.0,106000.0,0.14390133]
[1762776982010,0.66078882,106010.0,106000.0,0.05253803]
[1762776982310,0.66078882,106010.0,106000.0,0.14690133]
[1762776983414,0.66078882,106010.0,106000.0,0.05253803]
[1762776983805,0.66078882,106010.0,106000.0,0.14690133]
[1762776985711,0.56825661,106010.0,106000.0,0.14690133]
[1762776985914,0.56825661,106010.0,106000.0,0.52141133]
[1762776986213,0.66078882,106010.0,106000.0,0.50770133]
[1762776986620,0.56825661,106010.0,106000.0,0.50770133]
[1762776988509,0.4757244,106010.0,106000.0,0.50770133]
[1762776988714,0.66078882,106010.0,106000.0,0.50770133]
[1762776988911,0.56825661,106010.0,106000.0,0.52141133]
[1762776990709,0.24289661,106010.0,106000.0,0.52141133]
[1762776990909,0.56829661,106010.0,106000.0,0.52141133]
[1762776991413,0.66082882,106010.0,106000.0,0.52141133]
[1762776994108,0.4757644,106010.0,106000.0,0.52141133]
[1762776994317,0.66082882,106010.0,106000.0,0.52141133]
[1762776995319,0.56829661,106010.0,106000.0,0.52141133]
[1762776995911,0.66082882,106010.0,106000.0,0.52141133]
[1762776996415,0.56829661,106010.0,106000.0,0.52141133]
[1762776997008,0.5683411,106010.0,106000.0,0.52141133]
[1762776997612,0.2429411,106010.0,106000.0,0.52141133]
[1762776997812,0.5683411,106010.0,106000.0,0.52141133]
[1762776998014,0.5577511,106010.0,106000.0,0.52141133]
[1762776998510,0.4633967,106010.0,106000.0,0.52141133]
[1762776998710,0.5577511,106010.0,106000.0,0.52141133]
[1762776999009,0.04542,106010.0,106000.0,0.61398803]
[1762776999314,0.00014109,106020.0,106010.0,0.1511244]
[1762776999509,0.00014109,106020.0,106010.0,0.60669913]
[1762776999908,0.0925767,106030.0,106010.0,0.60669913]
[1762776999909,0.5176661,106050.0,106040.0,0.1373877]
[1762777000114,0.9356428,106050.0,106040.0,0.15329573]
[1762777000310,0.6102428,106050.0,106040.0,0.15329573]
[1762777000512,0.9356428,106050.0,106040.0,0.15329573]
[1762777000813,0.5968028,106050.0,106040.0,0.15329573]
[1762777001013,0.9222028,106050.0,106040.0,0.15329573]
[1762777001215,0.9252028,106050.0,106040.0,0.15329573]
[1762777002120,0.9292028,106050.0,106040.0,0.15329573]
[1762777005318,0.9292028,106050.0,106040.0,0.00219803]
[1762777005319,1.0339995,106050.0,106040.0,0.00219803]
[1762777005518,0.1533676,106040.0,106030.0,0.00014109]
[1762777005713,0.6067443,106040.0,106030.0,0.00014109]
[1762777006720,0.6067443,106040.0,106030.0,0.13973572]
[1762777006917,0.6087443,106040.0,106030.0,0.15344572]
[1762777007118,0.5737444,106040.0,106030.0,0.15344572]
[1762777007314,0.4813767,106040.0,106030.0,0.23029202]
[1762777007516,0.5757044,106040.0,106030.0,0.23029202]
[1762777008325,0.9365044,106040.0,106030.0,0.00233912]
[1762777008521,0.9365044,106040.0,106030.0,0.09667572]
[1762777008824,0.5757044,106040.0,106030.0,0.13973572]
[1762777009419,0.5757044,106040.0,106030.0,0.15284572]
[1762777009619,0.37536,106040.0,106030.0,0.15284572]
[1762777009820,0.5756144,106040.0,106030.0,0.13973572]
[1762777010724,0.2498544,106040.0,106030.0,0.13973572]
[1762777011027,0.5756944,106040.0,106030.0,0.13973572]
[1762777011621,0.2498544,106040.0,106030.0,0.13973572]
[1762777011927,0.0496,106040.0,106030.0,0.15284572]
[1762777012126,0.2365044,106040.0,106030.0,0.15284572]